Organisation Name,Organisation Code,Directorate/Service,Service Category Label,Service Code,Supplier Name,Supplier Reference,Payment Date,Transaction Number,Net Payments,Purpose of Spend,
North West Leicestershire District Council,31UH,Street Management,Environment - Street Scene,ESS,4 Planning Delivers Ltd,A043779,06/11/2019,1386069,350,Consultants Fees,
North West Leicestershire District Council,31UH,Neighbourhoods & Communities,N & C Community Safety,NACCS,Leicestershire Fire & Rescue Service,A042062,06/11/2019,1386132,"1,600.00",PCC Early Intervention Exp,
North West Leicestershire District Council,31UH,Housing,HRA Performance & Business Support,HRAPBS,Marsh Limited,A042169,06/11/2019,1386134,"11,004.37",Insurance - Tenants Contributions,
North West Leicestershire District Council,31UH,Planning & Development,Building Control,EBC,Leicestershire County Council,A027423,06/11/2019,1386238,"2,127.00",Fees - L.C.C.,
North West Leicestershire District Council,31UH,Street Management,Environment - Street Scene,ESS,Metric Group Ltd (Sales),A028996,06/11/2019,1386266,261,Subscriptions,
North West Leicestershire District Council,31UH,Planning & Development,Building Control,EBC,Leicestershire County Council,A027423,06/11/2019,1386269,"3,330.00",Fees - L.C.C.,
North West Leicestershire District Council,31UH,Housing Repairs,HRA Housing Repairs & Maintenance,HRAHRM,Severn Trent Water Limited,A001468,06/11/2019,1386292,967.97,Water & Sanitary Repairs,
North West Leicestershire District Council,31UH,Planning & Development,Environment - Development Control,EDC,TMP Worldwide Ltd,A045319,06/11/2019,1386315,323,Advertising,
North West Leicestershire District Council,31UH,Housing Repairs,HRA Capital,HRACAP,Tunstall Healthcare (UK) Limited,A001701,06/11/2019,1386320,"2,829.20",Contract Payments (Other) Ext,
North West Leicestershire District Council,31UH,Housing Repairs,HRA Capital,HRACAP,Tunstall Healthcare (UK) Limited,A001701,06/11/2019,1386321,"1,277.50",Contract Payments (Other) Ext,
North West Leicestershire District Council,31UH,Housing,HRA Housing Management,HRAHM,Aareon UK Ltd,A045197,06/11/2019,1386327,870,Contract Payments (Other) Ext,
North West Leicestershire District Council,31UH,Housing,HRA Housing Management,HRAHM,Aareon UK Ltd,A045197,06/11/2019,1386328,870,Contract Payments (Other) Ext,
North West Leicestershire District Council,31UH,Housing,HRA Housing Management,HRAHM,Housing Partners Ltd,A033400,06/11/2019,1386333,"6,607.00",Legal & Professional Services,
North West Leicestershire District Council,31UH,Legal & Democratic,Legal Services,LDLS,Sellick Partnership (East Midlands) Limited,A036668,06/11/2019,1386334,"1,462.23",Agency Staff,
North West Leicestershire District Council,31UH,Housing Repairs,HRA Housing Repairs & Maintenance,HRAHRM,Michael Dyson Associates Ltd,A028431,06/11/2019,1386367,268.8,Legal & Professional Services,
North West Leicestershire District Council,31UH,Housing Repairs,HRA Housing Repairs & Maintenance,HRAHRM,Michael Dyson Associates Ltd,A028431,06/11/2019,1386368,784,Consultants Fees,
North West Leicestershire District Council,31UH,Housing,HRA Housing Management,HRAHM,Coalville Yellow Cabs,A041983,06/11/2019,1386382,266.7,Public Transport,
North West Leicestershire District Council,31UH,Leisure & Culture,Sport & Physical Activity,SPA,Measham Leisure Centre,A027454,06/11/2019,1385548,"2,141.60",Measham LC Lifestyle DD,
North West Leicestershire District Council,31UH,Street Management,Environment Waste Management,ENOWM,Straight Plc,A024906,06/11/2019,1386080,"13,788.60",General Materials,
North West Leicestershire District Council,31UH,Housing,HRA Performance & Business Support,HRAPBS,Gresham Office Furniture Ltd,A045276,06/11/2019,1386082,450,Minor Improvements Alterations,
North West Leicestershire District Council,31UH,Housing,HRA Older Persons Service,HRAOPS,Tunstall Healthcare (UK) Limited,A001701,06/11/2019,1386124,"3,980.00",Alarm System Telephones,
North West Leicestershire District Council,31UH,Information Technology,ICT Services,ICT,Catalogic Software Ltd,A039733,06/11/2019,1386135,"4,320.00",Corporate IT Licences,
North West Leicestershire District Council,31UH,Environmental Health,Environmental Health & Licensing,EEHL,Vivid Resourcing,A044601,06/11/2019,1386214,"1,312.39",Agency Staff,
North West Leicestershire District Council,31UH,Information Technology,ICT Services,ICT,QA Ltd,A034064,06/11/2019,1386220,899,Training Expenses,
North West Leicestershire District Council,31UH,Economic Development,Business Focus Group,BFG,TMP Worldwide Ltd,A045319,06/11/2019,1386231,544.2,Consultants Fees,
North West Leicestershire District Council,31UH,Street Management,Environment - Street Scene,ESS,SLH Planning Solutions Limited,A044102,06/11/2019,1386234,"3,399.30",Consultants Fees,
North West Leicestershire District Council,31UH,Corporate Director,Human Resources,HR,GatenbySanderson Limited,A034524,06/11/2019,1386239,"3,149.33",Employee Advertising,
North West Leicestershire District Council,31UH,Corporate Director,Human Resources,HR,InPhase Ltd,A044108,06/11/2019,1386240,589.31,Travel and Subsistence,
North West Leicestershire District Council,31UH,Corporate Director,Human Resources,HR,InPhase Ltd,A044108,06/11/2019,1386242,255.33,Travel and Subsistence,
North West Leicestershire District Council,31UH,Corporate Director,Human Resources,HR,TMP Worldwide Ltd,A045319,06/11/2019,1386244,"2,620.00",Employee Advertising,
North West Leicestershire District Council,31UH,Leisure & Culture,Cultural Services Arts & Events,CULTEV,Leicester Arts Centre Ltd T/A Phoenix Arts,A021971,06/11/2019,1386245,750,Centre Screen Project,
North West Leicestershire District Council,31UH,Street Management,Environment Parks,ENOP,Baginton Nurseries Ltd,A039715,06/11/2019,1386246,"5,254.99",Operational Purchases,
North West Leicestershire District Council,31UH,Street Management,Environment Transport,ENOT,O Kay Engineering Services Ltd,A041943,06/11/2019,1386247,821,Operational Equipment - Rep & Maint,
North West Leicestershire District Council,31UH,Corporate Director,Human Resources,HR,Badgemaster Limited,A032369,06/11/2019,1386251,522.95,Corporate Training,
North West Leicestershire District Council,31UH,Street Management,Environment Transport,ENOT,Whitespace Work Software Ltd,A041243,06/11/2019,1386265,"1,120.80",Operational Equipment,
North West Leicestershire District Council,31UH,Street Management,Environment - Street Scene,ESS,GRC (Legal Services) Ltd,A045787,06/11/2019,1386272,"2,095.00",Legal & Professional Services,
North West Leicestershire District Council,31UH,Corporate Director,Human Resources,HR,InPhase Ltd,A044108,06/11/2019,1386291,"2,000.00",Consultants Fees,
North West Leicestershire District Council,31UH,Finance,Financial Planning,FINPLA,Venn Group Limited,A028530,06/11/2019,1386313,"1,260.00",Agency Staff,
North West Leicestershire District Council,31UH,Leisure & Culture,Sport & Physical Activity,SPA,TayPlay Sport Ltd,A045776,06/11/2019,1386322,"2,560.00",Least Active Children & Adults,
North West Leicestershire District Council,31UH,Leisure & Culture,Sport & Physical Activity,SPA,TayPlay Sport Ltd,A045776,06/11/2019,1386326,"1,980.00",Least Active Children & Adults,
North West Leicestershire District Council,31UH,Street Management,Environment - Street Scene,ESS,Dynamic Development Services Limited,A043778,06/11/2019,1386451,"6,615.00",Consultants Fees,
North West Leicestershire District Council,31UH,Housing,HRA Housing Management,HRAHM,Aareon UK Ltd,A045197,06/11/2019,1386453,870,Contract Payments (Other) Ext,
North West Leicestershire District Council,31UH,Housing,HRA Housing Management,HRAHM,Aareon UK Ltd,A045197,06/11/2019,1386454,870,Contract Payments (Other) Ext,
North West Leicestershire District Council,31UH,Housing,HRA Housing Management,HRAHM,Aareon UK Ltd,A045197,06/11/2019,1386455,870,Contract Payments (Other) Ext,
North West Leicestershire District Council,31UH,Street Management,Environment Transport,ENOT,Certas Energy Uk Ltd,A043448,06/11/2019,1386271,"18,817.29",Fuel,
North West Leicestershire District Council,31UH,Street Management,Environment Waste Management,ENOWM,Whitespace Work Software Ltd,A041243,06/11/2019,1386330,"10,875.00",Operational Equipment,
North West Leicestershire District Council,31UH,Street Management,Environment Waste Management,ENOWM,Whitespace Work Software Ltd,A041243,06/11/2019,1386331,"2,175.00",Operational Equipment,
North West Leicestershire District Council,31UH,Environmental Health,Environmental Health & Licensing,EEHL,VIP-System Limited,A045326,06/11/2019,1386378,300.04,Hackney Carriage - Plates & Badges,
North West Leicestershire District Council,31UH,Legal & Democratic,Audit Services,AUDIT,Audit and Business Services Limited,A045632,06/11/2019,1386389,"2,950.00",Agency Staff,
North West Leicestershire District Council,31UH,Housing Repairs,HRA Housing Repairs & Maintenance,HRAHRM,Oneserve Ltd,A041321,06/11/2019,1386449,270.39,Computing,
North West Leicestershire District Council,31UH,Housing Repairs,HRA Housing Repairs & Maintenance,HRAHRM,NJC Surveys Ltd,A045725,06/11/2019,1386450,375,Legal & Professional Services,
North West Leicestershire District Council,31UH,Neighbourhoods & Communities,N & C Community Safety,NACCS,Broadland Guarding Services Ltd,A042635,13/11/2019,1386317,"4,351.24",Agency Staff,
North West Leicestershire District Council,31UH,Street Management,Environment Transport,ENOT,Dennis Eagle Limited,A000522,13/11/2019,1386388,257.45,Scheduled Servicing - Parts,
North West Leicestershire District Council,31UH,Street Management,Environment Transport,ENOT,Ford & Slater Group Ltd,A000625,13/11/2019,1386474,724.28,Purchases,
North West Leicestershire District Council,31UH,Corporate Director,Human Resources,HR,Health Management Ltd,A038840,13/11/2019,1386492,"1,408.60",Medical Fees,
North West Leicestershire District Council,31UH,Corporate Director,Human Resources,HR,Wider Plan Ltd,A043948,13/11/2019,1386494,"1,989.00",Staff Benefit Scheme,
North West Leicestershire District Council,31UH,Finance,Exchequer Services,EXCH,Corvid PayGate Limited,A037426,13/11/2019,1386518,"2,017.02",Computing,
North West Leicestershire District Council,31UH,Street Management,Environment Parks,ENOP,K Borley & Son Ltd,A045080,13/11/2019,1386533,479.2,Operational Purchases,
North West Leicestershire District Council,31UH,Housing Repairs,HRA Housing Repairs & Maintenance,HRAHRM,Cawarden Company Limited,A045509,13/11/2019,1386538,"4,500.00",Other Services,
North West Leicestershire District Council,31UH,Housing Strategy,Community - Housing Strategy,HS,Shelter Training & Publications,A036464,13/11/2019,1386549,950.06,Training Expenses,
North West Leicestershire District Council,31UH,Street Management,Environment Parks,ENOP,County Drains Leicester Ltd,A024295,13/11/2019,1386140,815,Operational Purchases,
North West Leicestershire District Council,31UH,Environmental Health,Environmental Health & Licensing,EEHL,Eville And Jones Limited,A033670,13/11/2019,1386486,467.55,Vet Inspection,
North West Leicestershire District Council,31UH,Finance,Financial Planning,FINPLA,Venn Group Limited,A028530,13/11/2019,1386530,"1,260.00",Agency Staff,
North West Leicestershire District Council,31UH,Street Management,Environment Parks,ENOP,Regarde Security Ltd,A013049,13/11/2019,1386548,812.7,Security Services,
North West Leicestershire District Council,31UH,Leisure & Culture,Cultural Services Arts & Events,CULTEV,Mr Cleaver's Monsters,A045432,13/11/2019,1386218,250,N.W.L. Arts Festival,
North West Leicestershire District Council,31UH,Street Management,Environment Parks,ENOP,Keith Cook Training Services,A027792,13/11/2019,1386307,590,Training Expenses,
North West Leicestershire District Council,31UH,Leisure & Culture,Cultural Services Arts & Events,CULTEV,Henderson Managment,A044292,13/11/2019,1386380,943,Christmas in Coalville,
North West Leicestershire District Council,31UH,Housing,HRA Housing Management,HRAHM,Aareon UK Ltd,A045197,13/11/2019,1386515,870,Contract Payments (Other) Ext,
North West Leicestershire District Council,31UH,Housing,HRA Housing Management,HRAHM,Aareon UK Ltd,A045197,13/11/2019,1386516,870,Contract Payments (Other) Ext,
North West Leicestershire District Council,31UH,Housing,HRA Housing Management,HRAHM,Aareon UK Ltd,A045197,13/11/2019,1386525,"3,201.00",Contract Payments (Other) Ext,
North West Leicestershire District Council,31UH,Housing Repairs,HRA Housing Repairs & Maintenance,HRAHRM,Alysium Consulting,A043813,13/11/2019,1386526,565.6,Contract Payments (Other) Ext,
North West Leicestershire District Council,31UH,Street Management,Environment Transport,ENOT,Calor Gas Limited,A032686,13/11/2019,1386527,489.64,Gas,
North West Leicestershire District Council,31UH,Neighbourhoods & Communities,N & C Community Safety,NACCS,The Office of the Police and Crime Commissioner for Leicestershire,A007096,13/11/2019,1386537,600,PCC Early Intervention Exp,
North West Leicestershire District Council,31UH,Neighbourhoods & Communities,N & C Community Safety,NACCS,The Office of the Police and Crime Commissioner for Leicestershire,A007096,13/11/2019,1386591,"1,200.00",PCC Early Intervention Expenditure,policing - celebrate safely
North West Leicestershire District Council,31UH,Corporate Director,Human Resources,HR,Public Transformation Academy Ltd,A045775,13/11/2019,1386493,"7,500.00",Corporate Training,
North West Leicestershire District Council,31UH,Corporate Director,Human Resources,HR,TMP Worldwide Ltd,A045319,13/11/2019,1386529,"3,880.00",Employee Advertising,
North West Leicestershire District Council,31UH,Leisure & Culture,Sport & Physical Activity,SPA,Measham Leisure Centre,A027454,13/11/2019,1386636,"2,279.07",Measham LC Lifestyle DD,
North West Leicestershire District Council,31UH,Finance,Financial Planning,FINPLA,Mazars LLP,A045078,13/11/2019,1386641,"9,725.00",Audit Commision Fees,
North West Leicestershire District Council,31UH,Finance,Financial Planning,FINPLA,Michael Page International Recruitment Ltd,A041893,13/11/2019,1386659,"2,100.00",Agency Staff,
North West Leicestershire District Council,31UH,Street Management,Environment Waste Management,ENOWM,Whitespace Work Software Ltd,A041243,13/11/2019,1386664,720,Publicity & Promotion,
North West Leicestershire District Council,31UH,Planning & Development,Environment - Development Control,EDC,Trent Rivers Trust,A041633,13/11/2019,1386553,"9,876.75",River Mease,
North West Leicestershire District Council,31UH,Legal & Democratic,Legal Services,LDLS,Sellick Partnership (East Midlands) Limited,A036668,13/11/2019,1386663,"1,590.58",Agency Staff,
North West Leicestershire District Council,31UH,Street Management,Environment Transport,ENOT,Certas Energy Uk Ltd,A043448,13/11/2019,1386717,663.72,Fuel,
North West Leicestershire District Council,31UH,Street Management,Environment Transport,ENOT,Selby's Garage (Woodhouse) Ltd,A044011,13/11/2019,1386461,483.65,Hire Of Operational Equipment,
North West Leicestershire District Council,31UH,Information Technology,ICT Services,ICT,Phoenix Software Limited,A001298,13/11/2019,1386665,"5,288.56",Admin Equipment - Purchased & Recharged,
North West Leicestershire District Council,31UH,Street Management,Environment Transport,ENOT,Snap-On Tools Ltd,A001521,20/11/2019,1386528,"5,496.00",Operational Equipment,
North West Leicestershire District Council,31UH,Information Technology,ICT Services,ICT,Socitm Ltd,A012633,20/11/2019,1386596,995,Training Expenses,
North West Leicestershire District Council,31UH,Leisure & Culture,Cultural Services Arts & Events,CULTEV,Adrian Moakes,A044889,20/11/2019,1386601,"2,068.00",Contract Payments (Other) Ext,
North West Leicestershire District Council,31UH,Environmental Health,Environmental Health & Licensing,EEHL,Vivid Resourcing,A044601,20/11/2019,1386639,"1,312.39",Agency Staff,
North West Leicestershire District Council,31UH,Street Management,Environment Transport,ENOT,Dennis Eagle Limited,A000522,20/11/2019,1386662,257.45,Scheduled Servicing - Parts,
North West Leicestershire District Council,31UH,Information Technology,ICT Services,ICT,Six Degrees Technology Group Ltd,A044205,20/11/2019,1386745,"5,381.00",Admin Equipment - Maintenance,
North West Leicestershire District Council,31UH,Street Management,Environment Transport,ENOT,Selby's Garage (Woodhouse) Ltd,A044011,20/11/2019,1386754,297.16,Hire Of Operational Equipment,
North West Leicestershire District Council,31UH,Street Management,Environment Parks,ENOP,Verdon Timber Group,A001653,20/11/2019,1386755,308.2,Street Furniture,
North West Leicestershire District Council,31UH,Leisure & Culture,Cultural Services Arts & Events,CULTEV,Chameleon Pro Audio T/A Lux Technical Ltd,A027592,20/11/2019,1386756,451.45,Operational Equipment,
North West Leicestershire District Council,31UH,Leisure & Culture,Cultural Services Arts & Events,CULTEV,Chameleon Pro Audio T/A Lux Technical Ltd,A027592,20/11/2019,1386757,929,Civic Events - Remembrance Day,
North West Leicestershire District Council,31UH,Chief Exec,Chief Executive,CHEX,IDP Group,A045557,20/11/2019,1386766,"3,750.00",Project Management Services,
North West Leicestershire District Council,31UH,Chief Exec,Chief Executive,CHEX,Helene Mogelhoj,A045797,20/11/2019,1386769,"1,500.00",Consultants Fees,
North West Leicestershire District Council,31UH,Housing,HRA Housing Management,HRAHM,Helene Mogelhoj,A031195,20/11/2019,1386787,270,Training Expenses,
North West Leicestershire District Council,31UH,Chief Exec,Chief Executive,CHEX,CBRE Ltd,A041437,20/11/2019,1386788,"2,000.00",Legal & Professional Services,
North West Leicestershire District Council,31UH,Street Management,Environment Transport,ENOT,Westbury Industrial Supplies Limited,A009933,20/11/2019,1386793,972.73,Protective Clothing,
North West Leicestershire District Council,31UH,Information Technology,ICT Services,ICT,Adept Telecom Plc,A044193,20/11/2019,1386796,"13,320.75",Admin Equipment - Maintenance,
North West Leicestershire District Council,31UH,Finance,Financial Planning,FINPLA,Michael Page International Recruitment Ltd,A041893,20/11/2019,1386859,"2,100.00",Agency Staff,
North West Leicestershire District Council,31UH,Information Technology,ICT Services,ICT,Freedom Communications (UK) Ltd,A032826,20/11/2019,1386865,520.84,C.O. - Call Charges,
North West Leicestershire District Council,31UH,Information Technology,ICT Services,ICT,ACS Systems (UK) Ltd T/a ACS Office Solutions,A043447,20/11/2019,1386867,"1,635.00",Computing,
North West Leicestershire District Council,31UH,Finance,Revenues,REVS,Northgate Public Services Uk Ltd,A045302,20/11/2019,1386868,"4,466.00",Legal & Professional Services,
North West Leicestershire District Council,31UH,Property Services,Property Facilities Management,PROPFM,Regarde Security Ltd,A013049,20/11/2019,1386883,550.4,Building Security,
North West Leicestershire District Council,31UH,Property Services,Property Facilities Management,PROPFM,Regarde Security Ltd,A013049,20/11/2019,1386884,250,Building Security,
North West Leicestershire District Council,31UH,Property Services,Property Facilities Management,PROPFM,Regarde Security Ltd,A013049,20/11/2019,1386885,753.49,Building Security,
North West Leicestershire District Council,31UH,Street Management,Environment Transport,ENOT,Malvern Tyres,A035175,20/11/2019,1386895,371.28,Transport Costs - Tyres,
North West Leicestershire District Council,31UH,Street Management,Environment Transport,ENOT,Trade Price Windscreens Ltd,A040486,20/11/2019,1386897,255,Non Insurance Damage,
North West Leicestershire District Council,31UH,Environmental Health,Environmental Health & Licensing,EEHL,Vivid Resourcing,A044601,20/11/2019,1386288,"1,312.39",Agency Staff,
North West Leicestershire District Council,31UH,Property Services,Property Facilities Management,PROPFM,Midlands Cooling Services Ltd,A043433,20/11/2019,1386845,623.68,General Repairs,
North West Leicestershire District Council,31UH,Environmental Health,Environmental Health & Licensing,EEHL,Tennals Pest Control,A045705,20/11/2019,1386864,946,External Contractor Payments,
North West Leicestershire District Council,31UH,Information Technology,ICT Services,ICT,BT Business Direct,A039207,20/11/2019,1386918,330.11,Operational Equipment,
North West Leicestershire District Council,31UH,Chief Exec,Chief Executive,CHEX,IDP Group,A045557,20/11/2019,1386767,"2,800.00",Consultants Fees,
North West Leicestershire District Council,31UH,Chief Exec,Chief Executive,CHEX,Helene Mogelhoj,A045797,20/11/2019,1386768,"1,980.00",Consultants Fees,
North West Leicestershire District Council,31UH,Legal & Democratic,Legal Services,LDLS,Helene Mogelhoj,A036668,20/11/2019,1386786,"1,520.62",Agency Staff,
North West Leicestershire District Council,31UH,Finance,Financial Planning,FINPLA,Venn Group Limited,A028530,20/11/2019,1386795,"1,260.00",Agency Staff,
North West Leicestershire District Council,31UH,Finance,Financial Planning,FINPLA,Michael Page International Recruitment Ltd,A041893,20/11/2019,1386797,"1,680.00",Agency Staff,
North West Leicestershire District Council,31UH,Housing,HRA Performance & Business Support,HRAPBS,ESPO,A000958,20/11/2019,1386806,253.75,Stationery,
North West Leicestershire District Council,31UH,Street Management,Environment - Street Scene,ESS,IDP Group,A045557,20/11/2019,1386813,618.75,Contract Payments (Other) Ext,
North West Leicestershire District Council,31UH,Finance,Financial Planning,FINPLA,Stephen Anstey Stonemasons Ltd,A045676,20/11/2019,1386869,"7,039.00",Non Scheduled Maintenance - Parts,
North West Leicestershire District Council,31UH,Property Services,Property Facilities Management,PROPFM,Regarde Security Ltd,A013049,20/11/2019,1386879,266.6,Security Services,
North West Leicestershire District Council,31UH,Finance,Financial Planning,FINPLA,Michael Page International Recruitment Ltd,A041893,20/11/2019,1386994,"1,680.00",Agency Staff,
North West Leicestershire District Council,31UH,Finance,Financial Planning,FINPLA,Michael Page International Recruitment Ltd,A041893,20/11/2019,1386995,"2,100.00",Agency Staff,
North West Leicestershire District Council,31UH,Finance,Financial Planning,FINPLA,Michael Page International Recruitment Ltd,A041893,20/11/2019,1386996,"2,100.00",Agency Staff,
North West Leicestershire District Council,31UH,Finance,Financial Planning,FINPLA,Michael Page International Recruitment Ltd,A041893,20/11/2019,1386997,"2,100.00",Agency Staff,
North West Leicestershire District Council,31UH,Communications,Corporate - Communications,CP,ICS Learn,A045798,27/11/2019,1386554,888.17,Training Expenses,
North West Leicestershire District Council,31UH,Leisure & Culture,Cultural Services Arts & Events,CULTEV,Helter Skelter Arts Ltd,A043059,27/11/2019,1386604,500,Special Events,
North West Leicestershire District Council,31UH,Street Management,Environment Transport,ENOT,Mertrux Ltd,A035291,27/11/2019,1386607,538.18,Non Scheduled Maintenance - Parts,
North West Leicestershire District Council,31UH,Housing,HRA Housing Management,HRAHM,ECO Skip Hire Ltd,A041559,27/11/2019,1386743,290,General Repairs,
North West Leicestershire District Council,31UH,Street Management,Environment - Street Scene,ESS,Wigston Car Breakers,A043467,27/11/2019,1386812,420,Payments To Contractor,
North West Leicestershire District Council,31UH,Leisure & Culture,Cultural Services Arts & Events,CULTEV,Leicestershire Co-op Band,A027523,27/11/2019,1386872,475,Christmas in Coalville,
North West Leicestershire District Council,31UH,Neighbourhoods & Communities,N & C Community Safety,NACCS,Open Box Promotions,A039721,27/11/2019,1386877,360,Small Grant Scheme,
North West Leicestershire District Council,31UH,Legal & Democratic,Legal Services,LDLS,Sellick Partnership (East Midlands) Limited,A036668,27/11/2019,1387207,"1,537.11",Agency Staff,
North West Leicestershire District Council,31UH,Housing,HRA Housing Management,HRAHM,Aareon UK Ltd,A045197,27/11/2019,1387212,"2,134.00",Contract Payments (Other) Ext,
North West Leicestershire District Council,31UH,Housing,HRA Housing Management,HRAHM,Aareon UK Ltd,A045197,27/11/2019,1387213,"2,610.00",Contract Payments (Other) Ext,
North West Leicestershire District Council,31UH,Housing,HRA Housing Management,HRAHM,Aareon UK Ltd,A045197,27/11/2019,1387214,"2,610.00",Contract Payments (Other) Ext,
North West Leicestershire District Council,31UH,Property Services,Property Facilities Management,PROPFM,Watertec Compliance Solutions Ltd,A044559,27/11/2019,1387315,819.99,Service Contracts - Premises costs,
North West Leicestershire District Council,31UH,Planning & Development,Environment - Development Control,EDC,TMP Worldwide Ltd,A045319,27/11/2019,1387316,522.14,Advertising,
North West Leicestershire District Council,31UH,Planning & Development,Environment - Development Control,EDC,GHM Planning Limited,A034296,27/11/2019,1387317,"2,340.00",Agency Staff,
North West Leicestershire District Council,31UH,Property Services,Property Facilities Management,PROPFM,Watertec Compliance Solutions Ltd,A044559,27/11/2019,1386483,819.99,Service Contracts - Premises costs,
North West Leicestershire District Council,31UH,Leisure & Culture,Cultural Services Arts & Events,CULTEV,Phoenix Children's Foundation,A045052,27/11/2019,1387008,600,Christmas in Coalville,
North West Leicestershire District Council,31UH,Legal & Democratic,Legal Services,LDLS,Sellick Partnership (East Midlands) Limited,A036668,27/11/2019,1387024,"1,379.43",Agency Staff,
North West Leicestershire District Council,31UH,Environmental Health,Environmental Health & Licensing,EEHL,Digital ID Ltd T/A Essentra Security,A034580,27/11/2019,1387027,"1,125.50",Hackney Carriage - Plates & Badges,
North West Leicestershire District Council,31UH,Environmental Health,Environmental Health & Licensing,EEHL,Digital ID Ltd T/A Essentra Security,A034580,27/11/2019,1387059,990,Hackney Carriage - Plates & Badges,
North West Leicestershire District Council,31UH,Planning & Development,Environment Planning Policy,EPP,ESPO,A000958,27/11/2019,1387063,540,Operational Equipment,
North West Leicestershire District Council,31UH,Street Management,Environment Transport,ENOT,Parkers The Parts People,A044935,27/11/2019,1387071,319.99,Transport Costs - Engine Oil,
North West Leicestershire District Council,31UH,Finance,Revenues,REVS,Hinckley & Bosworth Borough Council,A000770,27/11/2019,1387089,"17,541.00",Shared Revs & Bens Partnership costs,
North West Leicestershire District Council,31UH,Corporate Director,Human Resources,HR,Health Management Ltd,A038840,27/11/2019,1387092,810.1,Medical Fees,
North West Leicestershire District Council,31UH,Street Management,Environment - Street Scene,ESS,Leicestershire County Council,A027423,27/11/2019,1387102,724.61,Routine Ground Maintenance,
North West Leicestershire District Council,31UH,Finance,Financial Planning,FINPLA,Michael Page International Recruitment Ltd,A041893,27/11/2019,1387165,"1,995.00",Agency Staff,
North West Leicestershire District Council,31UH,Housing Strategy,Community - Housing Strategy,HS,MRC Community Action,A001208,27/11/2019,1387186,270,Stride Furniture Scheme,
North West Leicestershire District Council,31UH,Finance,Financial Planning,FINPLA,Insight Uk,A021505,27/11/2019,1383674,"2,195.78",Training Expenses,
North West Leicestershire District Council,31UH,Housing Repairs,HRA Housing Repairs & Maintenance,HRAHRM,City Electrical Factors Limited,A035306,27/11/2019,1384955,409.95,Operational Purchases,
North West Leicestershire District Council,31UH,Finance,Revenues,REVS,ESPO,A000958,27/11/2019,1385170,344,Flexible working,
North West Leicestershire District Council,31UH,Housing Repairs,HRA Housing Repairs & Maintenance,HRAHRM,City Electrical Factors Ltd,A003893,27/11/2019,1385491,492.38,Operational Purchases,
North West Leicestershire District Council,31UH,Housing Repairs,HRA Housing Repairs & Maintenance,HRAHRM,John Merison BMC Ltd,A001092,27/11/2019,1385809,"1,397.50",General Repairs,
North West Leicestershire District Council,31UH,Finance,Housing Benefits,BENS,Harborough District Council,A008631,27/11/2019,1386250,"6,000.00",Legal & Professional Services,
North West Leicestershire District Council,31UH,Finance,Financial Planning,FINPLA,Rushcliffe Borough Council,A001425,27/11/2019,1386365,"1,139.07",Agency Staff,
North West Leicestershire District Council,31UH,Housing Repairs,HRA Housing Repairs & Maintenance,HRAHRM,Alliance Contracting Solutions Ltd,A043325,27/11/2019,1386762,"3,921.38",Non Scheduled Maintenance - Parts,
North West Leicestershire District Council,31UH,Environmental Health,Environmental Health & Licensing,EEHL,The Oyster Partnership Ltd,A032796,27/11/2019,1386858,511.5,Agency Staff,
North West Leicestershire District Council,31UH,Leisure & Culture,Cultural Services Arts & Events,CULTEV,Leicestershire Co-op Band,A027523,27/11/2019,1386866,250,Civic Events - Remembrance Day,
North West Leicestershire District Council,31UH,Environmental Health,Environmental Health & Licensing,EEHL,VIP-System Limited,A045326,27/11/2019,1387015,292.21,Hackney Carriage - Plates & Badges,
North West Leicestershire District Council,31UH,Environmental Health,Environmental Health & Licensing,EEHL,Vivid Resourcing,A044601,27/11/2019,1387016,"1,072.97",Agency Staff,
North West Leicestershire District Council,31UH,Neighbourhoods & Communities,N & C Community Safety,NACCS,Cheviot Trees Limited,A037926,27/11/2019,1387018,"9,857.01",Free Tree Scheme,
North West Leicestershire District Council,31UH,Property Services,Property Facilities Management,PROPFM,John Merison BMC Ltd,A001092,27/11/2019,1387019,"1,783.80",General Repairs,
North West Leicestershire District Council,31UH,Property Services,Property Facilities Management,PROPFM,John Merison BMC Ltd,A001092,27/11/2019,1387034,"2,714.27",General Repairs,
North West Leicestershire District Council,31UH,Planning & Development,Environment Planning Policy,EPP,SQW Group Limited,A045583,27/11/2019,1387043,"4,509.00",Consultants Fees,
North West Leicestershire District Council,31UH,Street Management,Environment Parks,ENOP,Westbury Industrial Supplies Limited,A009933,27/11/2019,1387047,319.28,Protective Clothing,
North West Leicestershire District Council,31UH,Leisure & Culture,Cultural Services Arts & Events,CULTEV,Field and Lawn Ltd,A042594,27/11/2019,1387057,710,Coalville Christmas Decorations,
North West Leicestershire District Council,31UH,Leisure & Culture,Cultural Services Arts & Events,CULTEV,Cadeby Tree Trust,A027405,27/11/2019,1387061,"2,000.00",Coalville Christmas Decorations,
North West Leicestershire District Council,31UH,Street Management,Environment Transport,ENOT,Lee Wells Autobodies Ltd,A031849,27/11/2019,1387081,540,Non Scheduled Maintenance - Parts,
North West Leicestershire District Council,31UH,Economic Development,Business Focus Group,BFG,Heartwood Conferencing Ltd,A041744,27/11/2019,1387084,272.5,Premises Hire,
North West Leicestershire District Council,31UH,Planning & Development,Environment - Development Control,EDC,TMP Worldwide Ltd,A045319,27/11/2019,1387093,343.92,Advertising,
North West Leicestershire District Council,31UH,Property Services,Property Facilities Management,PROPFM,Chameleon Pro Audio T/A Lux Technical Ltd,A027592,27/11/2019,1387101,"1,400.80",General Repairs,
North West Leicestershire District Council,31UH,Housing,HRA Housing Management,HRAHM,MRC Community Action,A001208,27/11/2019,1387121,262.5,HRA Hardship Fund,
North West Leicestershire District Council,31UH,Neighbourhoods & Communities,N & C Community Safety,NACCS,Vantage Technologies Ltd,A044209,27/11/2019,1387126,"2,056.00",Computer Software Maintenance,
North West Leicestershire District Council,31UH,Finance,Housing Benefits,BENS,Capita Business Services Ltd,A002968,27/11/2019,1387130,"4,232.00",Revs & Bens expenditure funded by grants,
North West Leicestershire District Council,31UH,Finance,Financial Planning,FINPLA,Venn Group Limited,A028530,27/11/2019,1387136,"1,260.00",Agency Staff,
North West Leicestershire District Council,31UH,Street Management,Environment Transport,ENOT,Watling JCB Ltd,A032114,27/11/2019,1387143,"1,175.00",Scheduled Servicing - Parts,
North West Leicestershire District Council,31UH,Leisure & Culture,Cultural Services Arts & Events,CULTEV,Fools Paradise,A037317,27/11/2019,1386605,530,Special Events,
North West Leicestershire District Council,31UH,Housing Repairs,HRA Housing Repairs & Maintenance,HRAHRM,Terratruck Distribution Services Ltd,A001648,27/11/2019,1387012,816,Operational Purchases,
North West Leicestershire District Council,31UH,Street Management,Environment Transport,ENOT,Terberg Matec UK Limited,A001647,27/11/2019,1387125,531.46,Non Scheduled Maintenance - Parts,
North West Leicestershire District Council,31UH,Environmental Health,Environmental Health & Licensing,EEHL,Vivid Resourcing,A044601,27/11/2019,1387161,"1,350.98",Agency Staff,
North West Leicestershire District Council,31UH,Communications,Corporate - Communications,CP,Reflec Signs & Graphics Ltd,A025348,27/11/2019,1387166,250,Operational Equipment,
North West Leicestershire District Council,31UH,Street Management,Environment Transport,ENOT,Gemco Equipment Ltd,A024379,27/11/2019,1387204,276.68,Operational Equipment - Rep & Maint,
North West Leicestershire District Council,31UH,Property Services,Property Commercial Lettings,PROPCL,Coalville Cleaning Services,A003037,27/11/2019,1387209,327.17,Contract Cleaning,
North West Leicestershire District Council,31UH,Property Services,Property Commercial Lettings,PROPCL,Coalville Cleaning Services,A003037,27/11/2019,1387210,615.33,Contract Cleaning,
North West Leicestershire District Council,31UH,Leisure & Culture,Sport & Physical Activity,SPA,Elliott Group Limited,A005413,27/11/2019,1387225,522.58,Alternative Fitness Suite,
North West Leicestershire District Council,31UH,Housing,HRA Housing Management,HRAHM,Capita Business Services Ltd,A002968,27/11/2019,1386040,"1,200.00",Consultants Fees,
North West Leicestershire District Council,31UH,Legal & Democratic,Legal Services,LDLS,HB Editorial Services Ltd,A044792,27/11/2019,1386764,450,Employee Advertising,
North West Leicestershire District Council,31UH,Street Management,Environment Transport,ENOT,Certas Energy Uk Ltd,A043448,27/11/2019,1387124,"18,852.46",Fuel,
North West Leicestershire District Council,31UH,Information Technology,ICT Services,ICT,House on the Hill Software Ltd,A042199,27/11/2019,1387199,850,Admin Equipment - Maintenance,
North West Leicestershire District Council,31UH,Street Management,Environment Transport,ENOT,Ford & Slater Group Ltd,A000625,06/11/2019,1386256,-300,Repairs - Parts,
North West Leicestershire District Council,31UH,Finance,Exchequer Services,EXCH,Comensura Limited,A036958,06/11/2019,1386262,"25,896.00",Agency Staff,
North West Leicestershire District Council,31UH,Leisure Centres,Hermitage Leisure Centre,HLC,Admiral Cleaning Supplies Ltd,A040930,06/11/2019,1386270,628.06,Consumable Cleaning Materials/Hygiene,
North West Leicestershire District Council,31UH,Housing,HRA Housing Management,HRAHM,Redacted - Personal Data,A045736,06/11/2019,1386274,"1,000.00",Under Occupancy Incentives,
North West Leicestershire District Council,31UH,Housing,HRA Housing Management,HRAHM,Water Plus Limited,A044043,06/11/2019,1386278,"2,486.09",Water Charges (Metered),
North West Leicestershire District Council,31UH,Housing,HRA Housing Management,HRAHM,JLA Limited,A043639,06/11/2019,1386280,302,Cleaning & Domestic Equipment,
North West Leicestershire District Council,31UH,Housing,HRA Housing Management,HRAHM,JLA Limited,A043639,06/11/2019,1386281,282,Cleaning & Domestic Equipment,
North West Leicestershire District Council,31UH,Housing,HRA Housing Management,HRAHM,JLA Limited,A043639,06/11/2019,1386282,282,Cleaning & Domestic Equipment,
North West Leicestershire District Council,31UH,Housing,HRA Housing Management,HRAHM,JLA Limited,A043639,06/11/2019,1386283,442,Cleaning & Domestic Equipment,
North West Leicestershire District Council,31UH,Finance,Exchequer Services,EXCH,Click Travel Ltd,A044308,06/11/2019,1386290,"2,564.78",Travel and Subsistence,
North West Leicestershire District Council,31UH,Information Technology,ICT Services,ICT,EE Ltd (Airtime),A018592,06/11/2019,1386293,"3,306.91",Mobile Telephones,
North West Leicestershire District Council,31UH,Information Technology,ICT Services,ICT,EE Ltd (Airtime),A018592,06/11/2019,1386294,"1,984.42",Mobile Telephones,
North West Leicestershire District Council,31UH,Street Management,Environment - Street Scene,ESS,Dods Parliamentary Communications Ltd,A036291,06/11/2019,1386308,410,Training Expenses,
North West Leicestershire District Council,31UH,Housing Repairs,HRA Housing Repairs & Maintenance,HRAHRM,TECSERV UK LIMITED,A028261,13/11/2019,1386310,-450,Contract Payments (Dws) Ext,
North West Leicestershire District Council,31UH,Housing Repairs,HRA Housing Repairs & Maintenance,HRAHRM,Sure Maintenance Ltd,A040460,06/11/2019,1386318,750,Plumbing & Heating,
North West Leicestershire District Council,31UH,Planning & Development,Environment Planning Policy,EPP,Cellar Door Creative Ltd,A045792,06/11/2019,1386324,330,Planning Application - Charges,
North West Leicestershire District Council,31UH,Property Services,Property Commercial Lettings,PROPCL,Water Plus Limited,A044043,06/11/2019,1386386,687.46,General Repairs,
North West Leicestershire District Council,31UH,Property Services,Property Facilities Management,PROPFM,Water Plus Limited,A044043,06/11/2019,1386387,845.54,Water Charges (Metered),
North West Leicestershire District Council,31UH,Chief Exec,Chief Executive,CHEX,NPS Peterborough Ltd,A044569,06/11/2019,1386452,"2,888.00",Legal & Professional Services,
North West Leicestershire District Council,31UH,Legal & Democratic,Legal Services,LDLS,Thomson Reuters (Professional) UK Limited,A037595,06/11/2019,1386465,"1,137.65",Computing,
North West Leicestershire District Council,31UH,Legal & Democratic,Legal Services,LDLS,The Law Society,A044377,06/11/2019,1386466,"1,352.00",Professional Fees,
North West Leicestershire District Council,31UH,Finance,Financial Planning,FINPLA,Zurich Municipal,A001835,13/11/2019,1386471,440.54,Insurances,
North West Leicestershire District Council,31UH,Communications,Corporate - Customer Services,CS,Neopost Limited,A000079,13/11/2019,1386491,"4,000.00",Postages,
North West Leicestershire District Council,31UH,Planning & Development,Environment - Development Control,EDC,Urban Design Doctor Ltd,A045292,13/11/2019,1386496,"6,852.20",Urban Design/Our Place,
North West Leicestershire District Council,31UH,Finance,Exchequer Services,EXCH,Comensura Limited,A036958,13/11/2019,1386497,"25,691.62",Agency Staff,
North West Leicestershire District Council,31UH,Finance,Exchequer Services,EXCH,Click Travel Ltd,A044308,13/11/2019,1386532,"1,033.86",Travel and Subsistence,
North West Leicestershire District Council,31UH,Leisure & Culture,Sport & Physical Activity,SPA,Rotary Club of Ashby de la Zouch Castle,A045800,13/11/2019,1386555,300,Least Active Children & Adults,
North West Leicestershire District Council,31UH,Legal & Democratic,Legal Services,LDLS,Browne Jacobson LLP,A042988,13/11/2019,1386595,"1,551.42",Legal & Professional Services,
North West Leicestershire District Council,31UH,Housing Repairs,HRA Housing Repairs & Maintenance,HRAHRM,Everwarm Limited,A044582,13/11/2019,1386598,"133,483.00",Contract Payments (Dws) Ext,
North West Leicestershire District Council,31UH,Legal & Democratic,Legal Services,LDLS,Bevan Brittan,A031366,13/11/2019,1386608,259.2,Legal & Professional Services,
North West Leicestershire District Council,31UH,Legal & Democratic,Legal Services,LDLS,No5 Barristers Chambers,A044688,13/11/2019,1386609,"1,000.00",Legal & Professional Services,
North West Leicestershire District Council,31UH,Leisure Centres,Castle Donington Community College,CDCC,Elliott Group Limited,A005413,13/11/2019,1386633,522.58,Alternative Fitness Suite,
North West Leicestershire District Council,31UH,Leisure Centres,Castle Donington Community College,CDCC,Elliott Group Limited,A005413,13/11/2019,1386634,505.72,Alternative Fitness Suite,
North West Leicestershire District Council,31UH,Environmental Health,Environmental Services,EES,Harborough District Council,A008631,13/11/2019,1386635,"5,989.63",Contaminated Land Officer,
North West Leicestershire District Council,31UH,Information Technology,ICT Services,ICT,Canon UK Ltd,A040459,13/11/2019,1386654,869.24,Equipment Operating Leases,
North West Leicestershire District Council,31UH,Information Technology,ICT Services,ICT,Canon UK Ltd,A040459,13/11/2019,1386655,"3,822.88",Equipment Operating Leases,
North West Leicestershire District Council,31UH,Leisure Centres,Hermitage Leisure Centre,HLC,William Freer Ltd,A000639,13/11/2019,1386720,613.75,General Repairs,
North West Leicestershire District Council,31UH,Corporate Director,Human Resources,HR,The Disclosure & Barring Service,A027625,14/11/2019,1386725,560,DBS Checks,
North West Leicestershire District Council,31UH,Finance,Financial Planning,FINPLA,Department for Communities & Local Government,A028518,14/11/2019,1386726,"159,908.83",Subsidy Receipts & Repayments,
North West Leicestershire District Council,31UH,Finance,Financial Planning,FINPLA,Public Works Loan Board,A001340,14/11/2019,1386727,"43,125.00",P.W.L.B. Loans,
North West Leicestershire District Council,31UH,Finance,Financial Planning,FINPLA,Leicestershire County Council,A000950,14/11/2019,1386728,"3,208,668.00",Precept,
North West Leicestershire District Council,31UH,Finance,Financial Planning,FINPLA,Department for Communities & Local Government,A028518,14/11/2019,1386729,"1,229,666.00",Subsidy Receipts & Repayments,
North West Leicestershire District Council,31UH,Finance,Financial Planning,FINPLA,"Leicester, Leicestershire &",A028339,14/11/2019,1386730,"226,911.00",Precept,
North West Leicestershire District Council,31UH,Finance,Financial Planning,FINPLA,The Office of the Police and Crime Commissioner for Leicestershire,A007096,14/11/2019,1386731,"759,432.57",Precept,
North West Leicestershire District Council,31UH,Finance,Financial Planning,FINPLA,Leicestershire County Council,A000950,14/11/2019,1386732,"4,399,445.00",Precept,
North West Leicestershire District Council,31UH,Finance,Exchequer Services,EXCH,British Telecommunications Plc,A000233,14/11/2019,1386741,"5,394.74",Alarm System Telephones,
North West Leicestershire District Council,31UH,Finance,Exchequer Services,EXCH,Vodafone Limited,A001861,14/11/2019,1386742,"1,130.46",Mobile Telephones,
North West Leicestershire District Council,31UH,Housing Repairs,HRA Housing Repairs & Maintenance,HRAHRM,Robert Woodhead Ltd,A043924,14/11/2019,1386744,"172,191.94",Contract Payments (Dws) Ext,
North West Leicestershire District Council,31UH,Finance,Exchequer Services,EXCH,H M Land Registry,A000713,14/11/2019,1386746,"1,139.00",Operational Equipment,
North West Leicestershire District Council,31UH,Housing,HRA Housing Management,HRAHM,H M C S,A033868,14/11/2019,1386761,"4,218.00",Legal & Professional Services,
North West Leicestershire District Council,31UH,Housing,HRA Housing Management,HRAHM,JLA Limited,A043639,20/11/2019,1386747,427.84,Cleaning & Domestic Equipment,
North West Leicestershire District Council,31UH,Housing,HRA Housing Management,HRAHM,E.on,A000528,20/11/2019,1386748,505.81,Electricity,
North West Leicestershire District Council,31UH,Legal & Democratic,Legal Services,LDLS,Browne Jacobson LLP,A042988,20/11/2019,1386765,480,Legal & Professional Services,
North West Leicestershire District Council,31UH,Finance,Exchequer Services,EXCH,Comensura Limited,A036958,20/11/2019,1386782,"26,254.70",Agency Staff,
North West Leicestershire District Council,31UH,Leisure & Culture,Sport & Physical Activity,SPA,Castle Donington Youth Club,A040996,20/11/2019,1386802,500,Least Active Children & Adults,
North West Leicestershire District Council,31UH,Leisure & Culture,Sport & Physical Activity,SPA,HOSPICE HOPE,A030628,20/11/2019,1386803,500,Exercise Referral,
North West Leicestershire District Council,31UH,Finance,Revenues,REVS,Bristow & Sutor,A031060,20/11/2019,1386815,414,Financial Services,
North West Leicestershire District Council,31UH,Finance,Exchequer Services,EXCH,Click Travel Ltd,A044308,20/11/2019,1386819,"1,431.57",Travel and Subsistence,
North West Leicestershire District Council,31UH,Housing Repairs,HRA Housing Repairs & Maintenance,HRAHRM,Sure Maintenance Ltd,A040460,20/11/2019,1386840,750,Plumbing & Heating,
North West Leicestershire District Council,31UH,Finance,Financial Planning,FINPLA,Zurich Insurance Company,A001836,20/11/2019,1386863,"2,500.00",Insurances,
North West Leicestershire District Council,31UH,Leisure & Culture,Cultural Services Arts & Events,CULTEV,Ashby Concert Band,A044484,20/11/2019,1386875,700,Ticket purchases,
North West Leicestershire District Council,31UH,Planning & Development,Environment Planning Policy,EPP,Roca Ltd,A045819,20/11/2019,1386913,330,Planning Application - Charges,
North West Leicestershire District Council,31UH,Housing Repairs,HRA Housing Repairs & Maintenance,HRAHRM,G Purchase Construction Ltd,A032830,20/11/2019,1386914,"2,011.27",Housing repairs,
North West Leicestershire District Council,31UH,Housing Repairs,HRA Housing Repairs & Maintenance,HRAHRM,G Purchase Construction Ltd,A032830,20/11/2019,1386915,"1,022.40",Housing repairs,
North West Leicestershire District Council,31UH,Communications,Corporate - Customer Services,CS,Neopost Limited,A000079,20/11/2019,1386916,"2,000.00",Postages,
North West Leicestershire District Council,31UH,Leisure & Culture,Cultural Services Arts & Events,CULTEV,Ashby Dramatic Society,A027431,20/11/2019,1386917,279,Ticket purchases,
North West Leicestershire District Council,31UH,Housing Repairs,HRA Housing Repairs & Maintenance,HRAHRM,G Purchase Construction Ltd,A032830,20/11/2019,1386923,"10,621.04",Housing repairs,
North West Leicestershire District Council,31UH,Leisure & Culture,Cultural Services Arts & Events,CULTEV,Warning Zone,A039367,20/11/2019,1386924,"2,000.00",PCC Early Intervention Exp,
North West Leicestershire District Council,31UH,Finance,Financial Planning,FINPLA,Conwy County Borough Council,A045300,21/11/2019,1387000,"2,000,000.00",Policy Lending,
North West Leicestershire District Council,31UH,Finance,Exchequer Services,EXCH,Total Gas & Power,A033385,21/11/2019,1387001,"12,651.00",Electricity,
North West Leicestershire District Council,31UH,Housing Repairs,HRA Housing Repairs & Maintenance,HRAHRM,DMW Environmental Safety Ltd,A044203,27/11/2019,1387032,827.27,Legal & Professional Services,
North West Leicestershire District Council,31UH,Housing,HRA Housing Management,HRAHM,Castle Donington TARA,A043161,27/11/2019,1387056,600,Grants,
North West Leicestershire District Council,31UH,Neighbourhoods & Communities,N & C Neighbourhoods,NACN,Redacted - Personal Data,A045831,27/11/2019,1387085,500,Grants,
North West Leicestershire District Council,31UH,Neighbourhoods & Communities,N & C Neighbourhoods,NACN,Redacted - Personal Data,A045828,27/11/2019,1387088,500,Grants,
North West Leicestershire District Council,31UH,Property Services,Property Commercial Lettings,PROPCL,British Telecommunications Plc,A000233,27/11/2019,1387100,554.8,Telephones,
North West Leicestershire District Council,31UH,Legal & Democratic,Legal Services,LDLS,BPP Professional Education,A044626,27/11/2019,1387122,"1,317.00",Training Expenses,
North West Leicestershire District Council,31UH,Information Technology,ICT Services,ICT,EE Ltd (Equipment),A043413,27/11/2019,1387127,925,Mobile Telephones,
North West Leicestershire District Council,31UH,Information Technology,ICT Services,ICT,EE Ltd (Equipment),A043413,27/11/2019,1387128,-875,Mobile Telephones,
North West Leicestershire District Council,31UH,Finance,Exchequer Services,EXCH,Click Travel Ltd,A044308,27/11/2019,1387138,"1,192.04",Travel and Subsistence,
North West Leicestershire District Council,31UH,Information Technology,ICT Services,ICT,British Telecommunications Plc,A000233,27/11/2019,1387141,460.8,General Repairs,
North West Leicestershire District Council,31UH,Street Management,Environment - Street Scene,ESS,Kings Armoured Security Services Ltd,A004468,27/11/2019,1387142,"1,103.67",Collection - Cash,
North West Leicestershire District Council,31UH,Housing Repairs,HRA Housing Repairs & Maintenance,HRAHRM,DMW Environmental Safety Ltd,A044203,27/11/2019,1387163,944,Legal & Professional Services,
North West Leicestershire District Council,31UH,Housing Repairs,HRA Housing Repairs & Maintenance,HRAHRM,Kaefer Ltd,A044187,27/11/2019,1387164,"11,836.92",Contract Payments (Dws) Ext,
North West Leicestershire District Council,31UH,Finance,Financial Planning,FINPLA,Leicestershire County Council,A000951,27/11/2019,1387190,500,Fees - L.C.C.,
North West Leicestershire District Council,31UH,Environmental Health,Environmental Health & Licensing,EEHL,College Garth Ltd T/A College Garth Kennels,A000385,27/11/2019,1387230,"1,884.55",Stray Dog Service,
North West Leicestershire District Council,31UH,Street Management,Environment Parks,ENOP,Leicestershire County Council,A000950,27/11/2019,1387231,341.07,Contract Cleaning,
North West Leicestershire District Council,31UH,Street Management,Environment Parks,ENOP,Leicestershire County Council,A000950,27/11/2019,1387232,414.53,Contract Cleaning,
North West Leicestershire District Council,31UH,Street Management,Environment Waste Management,ENOWM,SUEZ Recycling and Recovery UK Ltd,A001108,27/11/2019,1387233,325.28,Tipping Charges,
North West Leicestershire District Council,31UH,Corporate Director,Human Resources,HR,Lex Autolease,A033523,27/11/2019,1387234,"2,411.33",Items To Be Leased,
North West Leicestershire District Council,31UH,Street Management,Environment - Street Scene,ESS,Haven Power Limited,A036448,27/11/2019,1387313,477.65,Electricity,
North West Leicestershire District Council,31UH,Street Management,Environment Transport,ENOT,Post Office Limited,A008559,27/11/2019,1387314,"4,450.00",Licences - Road Fund Licence,
North West Leicestershire District Council,31UH,Housing Repairs,HRA Housing Repairs & Maintenance,HRAHRM,Severn Trent Water Limited,A001468,06/11/2019,1386335,"1,447.58",Repairs - Parts,
North West Leicestershire District Council,31UH,Housing Repairs,HRA Housing Repairs & Maintenance,HRAHRM,Heights Installations,A041264,06/11/2019,1386338,460,Non Scheduled Maintenance - Parts,
North West Leicestershire District Council,31UH,Housing Repairs,HRA Housing Repairs & Maintenance,HRAHRM,Emperor Scaffolding Limited,A038405,06/11/2019,1386343,375,Hire Of Operational Equipment,
North West Leicestershire District Council,31UH,Housing Repairs,HRA Housing Repairs & Maintenance,HRAHRM,Orbis Property Protection Ltd,A028149,06/11/2019,1386344,668.86,Void Property Clearance Services,
North West Leicestershire District Council,31UH,Housing Repairs,HRA Housing Repairs & Maintenance,HRAHRM,Laker BMS Ltd,A031787,06/11/2019,1386345,687.25,Plumbing & Heating,
North West Leicestershire District Council,31UH,Housing Repairs,HRA Housing Repairs & Maintenance,HRAHRM,Emperor Scaffolding Limited,A038405,06/11/2019,1386347,"1,190.00",Hire Of Operational Equipment,
North West Leicestershire District Council,31UH,Housing Repairs,HRA Housing Repairs & Maintenance,HRAHRM,Emperor Scaffolding Limited,A038405,06/11/2019,1386348,"1,180.00",Hire Of Operational Equipment,
North West Leicestershire District Council,31UH,Housing Repairs,HRA Housing Repairs & Maintenance,HRAHRM,Orbis Property Protection Ltd,A028149,06/11/2019,1386349,674.01,Void Property Clearance Services,
North West Leicestershire District Council,31UH,Housing Repairs,HRA Housing Repairs & Maintenance,HRAHRM,Orbis Property Protection Ltd,A028149,06/11/2019,1386351,461.01,Void Property Clearance Services,
North West Leicestershire District Council,31UH,Housing Repairs,HRA Housing Repairs & Maintenance,HRAHRM,Laker BMS Ltd,A031787,06/11/2019,1386356,"2,416.85",Contract Payments (Dws) Ext,
North West Leicestershire District Council,31UH,Housing Repairs,HRA Housing Repairs & Maintenance,HRAHRM,Laker BMS Ltd,A031787,06/11/2019,1386357,265.5,Plumbing & Heating,
North West Leicestershire District Council,31UH,Housing Repairs,HRA Housing Repairs & Maintenance,HRAHRM,Severn Trent Water Limited,A001468,06/11/2019,1386359,959.31,Repairs - Parts,
North West Leicestershire District Council,31UH,Housing Repairs,HRA Housing Repairs & Maintenance,HRAHRM,Timber-Link Fencing Ltd,A033297,13/11/2019,1386556,"1,330.00",External Contractor Payments,
North West Leicestershire District Council,31UH,Housing Repairs,HRA Housing Repairs & Maintenance,HRAHRM,Timber-Link Fencing Ltd,A033297,13/11/2019,1386557,"1,700.00",External Contractor Payments,
North West Leicestershire District Council,31UH,Housing Repairs,HRA Housing Repairs & Maintenance,HRAHRM,Timber-Link Fencing Ltd,A033297,13/11/2019,1386558,325,External Contractor Payments,
North West Leicestershire District Council,31UH,Housing Repairs,HRA Housing Repairs & Maintenance,HRAHRM,Timber-Link Fencing Ltd,A033297,13/11/2019,1386559,"1,160.00",External Contractor Payments,
North West Leicestershire District Council,31UH,Housing Repairs,HRA Housing Repairs & Maintenance,HRAHRM,Timber-Link Fencing Ltd,A033297,13/11/2019,1386560,750,External Contractor Payments,
North West Leicestershire District Council,31UH,Housing Repairs,HRA Housing Repairs & Maintenance,HRAHRM,Timber-Link Fencing Ltd,A033297,13/11/2019,1386561,"1,150.00",External Contractor Payments,
North West Leicestershire District Council,31UH,Housing Repairs,HRA Housing Repairs & Maintenance,HRAHRM,Timber-Link Fencing Ltd,A033297,13/11/2019,1386562,715,External Contractor Payments,
North West Leicestershire District Council,31UH,Housing Repairs,HRA Housing Repairs & Maintenance,HRAHRM,Timber-Link Fencing Ltd,A033297,13/11/2019,1386615,"1,559.00",External Contractor Payments,
North West Leicestershire District Council,31UH,Housing Repairs,HRA Housing Repairs & Maintenance,HRAHRM,Timber-Link Fencing Ltd,A033297,13/11/2019,1386616,750,External Contractor Payments,
North West Leicestershire District Council,31UH,Housing Repairs,HRA Housing Repairs & Maintenance,HRAHRM,Timber-Link Fencing Ltd,A033297,13/11/2019,1386617,785,External Contractor Payments,
North West Leicestershire District Council,31UH,Housing Repairs,HRA Housing Repairs & Maintenance,HRAHRM,Timber-Link Fencing Ltd,A033297,13/11/2019,1386618,640,External Contractor Payments,
North West Leicestershire District Council,31UH,Housing Repairs,HRA Housing Repairs & Maintenance,HRAHRM,Timber-Link Fencing Ltd,A033297,13/11/2019,1386619,650,External Contractor Payments,
North West Leicestershire District Council,31UH,Housing Repairs,HRA Housing Repairs & Maintenance,HRAHRM,Timber-Link Fencing Ltd,A033297,13/11/2019,1386620,432,External Contractor Payments,
North West Leicestershire District Council,31UH,Housing Repairs,HRA Housing Repairs & Maintenance,HRAHRM,Timber-Link Fencing Ltd,A033297,13/11/2019,1386621,250,External Contractor Payments,
North West Leicestershire District Council,31UH,Housing Repairs,HRA Housing Repairs & Maintenance,HRAHRM,Timber-Link Fencing Ltd,A033297,13/11/2019,1386622,"2,578.00",External Contractor Payments,
North West Leicestershire District Council,31UH,Housing Repairs,HRA Housing Repairs & Maintenance,HRAHRM,Timber-Link Fencing Ltd,A033297,13/11/2019,1386624,"1,864.00",External Contractor Payments,
North West Leicestershire District Council,31UH,Housing Repairs,HRA Housing Repairs & Maintenance,HRAHRM,TECSERV UK LIMITED,A028261,13/11/2019,1386563,268,Contract Payments (Dws) Ext,
North West Leicestershire District Council,31UH,Housing Repairs,HRA Housing Repairs & Maintenance,HRAHRM,Laker BMS Ltd,A031787,13/11/2019,1386566,"4,536.78",Contract Payments (Dws) Ext,
North West Leicestershire District Council,31UH,Housing Repairs,HRA Housing Repairs & Maintenance,HRAHRM,Laker BMS Ltd,A031787,13/11/2019,1386568,289,Plumbing & Heating,
North West Leicestershire District Council,31UH,Housing Repairs,HRA Housing Repairs & Maintenance,HRAHRM,TECSERV UK LIMITED,A028261,13/11/2019,1386569,387.74,Contract Payments (Dws) Ext,
North West Leicestershire District Council,31UH,Housing Repairs,HRA Housing Repairs & Maintenance,HRAHRM,Laker BMS Ltd,A031787,13/11/2019,1386570,289,Plumbing & Heating,
North West Leicestershire District Council,31UH,Housing Repairs,HRA Housing Repairs & Maintenance,HRAHRM,Laker BMS Ltd,A031787,13/11/2019,1386571,"2,330.03",Contract Payments (Dws) Ext,
North West Leicestershire District Council,31UH,Housing Repairs,HRA Housing Repairs & Maintenance,HRAHRM,Laker BMS Ltd,A031787,13/11/2019,1386572,"4,465.09",Contract Payments (Dws) Ext,
North West Leicestershire District Council,31UH,Housing Repairs,HRA Housing Repairs & Maintenance,HRAHRM,Laker BMS Ltd,A031787,13/11/2019,1386573,"4,720.92",Contract Payments (Dws) Ext,
North West Leicestershire District Council,31UH,Housing Repairs,HRA Housing Repairs & Maintenance,HRAHRM,Laker BMS Ltd,A031787,13/11/2019,1386574,"5,191.82",Contract Payments (Dws) Ext,
North West Leicestershire District Council,31UH,Housing Repairs,HRA Housing Repairs & Maintenance,HRAHRM,Emperor Scaffolding Limited,A038405,13/11/2019,1386579,"1,010.00",Hire Of Operational Equipment,
North West Leicestershire District Council,31UH,Housing Repairs,HRA Housing Repairs & Maintenance,HRAHRM,Emperor Scaffolding Limited,A038405,13/11/2019,1386580,530,Hire Of Operational Equipment,
North West Leicestershire District Council,31UH,Housing Repairs,HRA Housing Repairs & Maintenance,HRAHRM,Emperor Scaffolding Limited,A038405,13/11/2019,1386581,530,Hire Of Operational Equipment,
North West Leicestershire District Council,31UH,Housing Repairs,HRA Housing Repairs & Maintenance,HRAHRM,Emperor Scaffolding Limited,A038405,13/11/2019,1386582,530,Hire Of Operational Equipment,
North West Leicestershire District Council,31UH,Housing Repairs,HRA Housing Repairs & Maintenance,HRAHRM,Emperor Scaffolding Limited,A038405,13/11/2019,1386585,300,Hire Of Operational Equipment,
North West Leicestershire District Council,31UH,Housing Repairs,HRA Housing Repairs & Maintenance,HRAHRM,H20 Utilities Ltd,A043865,13/11/2019,1386588,700,Repairs - Parts,
North West Leicestershire District Council,31UH,Housing Repairs,HRA Housing Repairs & Maintenance,HRAHRM,Cadent Gas limited,A032629,13/11/2019,1386589,861.44,Contract Payments (Dws) Ext,
North West Leicestershire District Council,31UH,Housing Repairs,HRA Housing Repairs & Maintenance,HRAHRM,TECSERV UK LIMITED,A028261,20/11/2019,1386820,268,Contract Payments (Dws) Ext,
North West Leicestershire District Council,31UH,Housing Repairs,HRA Housing Repairs & Maintenance,HRAHRM,Laker BMS Ltd,A031787,20/11/2019,1386822,"7,223.78",Contract Payments (Dws) Ext,
North West Leicestershire District Council,31UH,Housing Repairs,HRA Housing Repairs & Maintenance,HRAHRM,Emperor Scaffolding Limited,A038405,20/11/2019,1386833,970,Hire Of Operational Equipment,
North West Leicestershire District Council,31UH,Housing Repairs,HRA Housing Repairs & Maintenance,HRAHRM,Emperor Scaffolding Limited,A038405,20/11/2019,1386834,300,Hire Of Operational Equipment,
North West Leicestershire District Council,31UH,Housing Repairs,HRA Housing Repairs & Maintenance,HRAHRM,Cadent Gas limited,A032629,20/11/2019,1386835,510,Contract Payments (Dws) Ext,
North West Leicestershire District Council,31UH,Housing Repairs,HRA Housing Repairs & Maintenance,HRAHRM,Orbis Property Protection Ltd,A028149,27/11/2019,1387144,504.22,Void Property Clearance Services,
North West Leicestershire District Council,31UH,Housing Repairs,HRA Housing Repairs & Maintenance,HRAHRM,Orbis Property Protection Ltd,A028149,27/11/2019,1387149,334.43,Void Property Clearance Services,
North West Leicestershire District Council,31UH,Housing Repairs,HRA Housing Repairs & Maintenance,HRAHRM,Orbis Property Protection Ltd,A028149,27/11/2019,1387150,828.36,Void Property Clearance Services,
North West Leicestershire District Council,31UH,Housing Repairs,HRA Housing Repairs & Maintenance,HRAHRM,Orbis Property Protection Ltd,A028149,27/11/2019,1387151,437.34,Void Property Clearance Services,
North West Leicestershire District Council,31UH,Housing Repairs,HRA Housing Repairs & Maintenance,HRAHRM,Orbis Property Protection Ltd,A028149,27/11/2019,1387152,895.24,Void Property Clearance Services,
North West Leicestershire District Council,31UH,Housing Repairs,HRA Housing Repairs & Maintenance,HRAHRM,Orbis Property Protection Ltd,A028149,27/11/2019,1387157,447.11,Void Property Clearance Services,
North West Leicestershire District Council,31UH,Housing Repairs,HRA Housing Repairs & Maintenance,HRAHRM,Orbis Property Protection Ltd,A028149,27/11/2019,1387158,"1,003.29",Void Property Clearance Services,
North West Leicestershire District Council,31UH,Finance,Exchequer Services,EXCH,Severn Trent Water Limited,A042250,21/11/2019,1386998,642.6,Conveyancing Searches,
North West Leicestershire District Council,31UH,Finance,Exchequer Services,EXCH,Amazon UK,A042250,21/11/2019,1386998,292.95,Operational Equipment,
North West Leicestershire District Council,31UH,Finance,Exchequer Services,EXCH,Digicert,A042250,21/11/2019,1386998,645.88,Software Licences,
North West Leicestershire District Council,31UH,Finance,Exchequer Services,EXCH,Amazon UK,A042250,21/11/2019,1386999,671.04,Operational Equipment,
North West Leicestershire District Council,31UH,Finance,Exchequer Services,EXCH,Severn Trent Water Limited,A042250,21/11/2019,1387003,428.4,Conveyancing Searches,
North West Leicestershire District Council,31UH,Finance,Exchequer Services,EXCH,Amazon UK,A042250,21/11/2019,1387004,901.99,Operational Equipment,
North West Leicestershire District Council,31UH,Finance,Exchequer Services,EXCH,Digicert,A042250,21/11/2019,1387004,348.64,Software Licences,
